[Event "*** MasterClass Titled Tuesday Blitz"]
[Site "Chess.com"]
[Date "2017.10.03"]
[Round "2"]
[White "Induwara_IM"]
[Black "tigra"]
[Result "0-1"]
[WhiteElo "2488"]
[BlackElo "2642"]
[TimeControl "180+2"]
[EndTime "13:23:29 PDT"]
[Termination "tigra won by resignation"]

1. d4 {[%clk 0:03:01.9]} 1... Nf6 {[%clk 0:03:00.5]} 2. c4 {[%clk 0:03:02.8]}
2... g6 {[%clk 0:03:02.1]} 3. Nc3 {[%clk 0:03:03.5]} 3... d5 {[%clk 0:03:02.7]}
4. Bg5 {[%clk 0:03:02.9]} 4... Ne4 {[%clk 0:03:03.1]} 5. Bh4 {[%clk 0:03:04.3]}
5... Nxc3 {[%clk 0:03:04.1]} 6. bxc3 {[%clk 0:03:06.2]} 6... dxc4 {[%clk
0:03:05.8]} 7. e3 {[%clk 0:03:05]} 7... Be6 {[%clk 0:03:06.9]} 8. Be2 {[%clk
0:03:05.6]} 8... Nd7 {[%clk 0:03:06.3]} 9. Nh3 {[%clk 0:03:06.8]} 9... f6 {[%clk
0:02:46.1]} 10. O-O {[%clk 0:02:50.2]} 10... Nb6 {[%clk 0:02:40.1]} 11. e4
{[%clk 0:02:49.7]} 11... Bf7 {[%clk 0:02:31.3]} 12. f4 {[%clk 0:02:41.8]} 12...
a5 {[%clk 0:02:26]} 13. Rb1 {[%clk 0:02:39.4]} 13... a4 {[%clk 0:02:24.8]} 14.
d5 {[%clk 0:02:20.1]} 14... Bg7 {[%clk 0:02:09.2]} 15. f5 {[%clk 0:02:16.4]}
15... Bh6 {[%clk 0:02:05.2]} 16. Bf2 {[%clk 0:02:10.9]} 16... Qd6 {[%clk
0:02:05.2]} 17. Bd4 {[%clk 0:02:06]} 17... O-O {[%clk 0:02:01.5]} 18. fxg6
{[%clk 0:02:01.7]} 18... hxg6 {[%clk 0:02:01.9]} 19. Nf2 {[%clk 0:01:54.8]}
19... a3 {[%clk 0:01:42.8]} 20. Qe1 {[%clk 0:01:47.5]} 20... e5 {[%clk
0:01:29.5]} 21. dxe6 {[%clk 0:01:37.8]} 21... Bxe6 {[%clk 0:01:30.4]} 22. Ng4
{[%clk 0:01:28.4]} 22... Bxg4 {[%clk 0:01:31]} 23. Bxg4 {[%clk 0:01:30.3]} 23...
Rae8 {[%clk 0:01:29.9]} 24. Bd1 {[%clk 0:01:02.4]} 24... Bf4 {[%clk 0:01:09.3]}
25. Qh4 {[%clk 0:01:02.1]} 25... Be5 {[%clk 0:01:07.7]} 26. Qh6 {[%clk
0:00:38.2]} 26... Bxd4+ {[%clk 0:01:08.2]} 27. cxd4 {[%clk 0:00:39.6]} 27...
Qxd4+ {[%clk 0:01:09.6]} 28. Kh1 {[%clk 0:00:40.2]} 28... Re7 {[%clk 0:01:10.8]}
29. Qxg6+ {[%clk 0:00:36.5]} 29... Rg7 {[%clk 0:01:11.5]} 30. Qf5 {[%clk
0:00:35.4]} 30... Qe5 {[%clk 0:01:07]} 31. Qf3 {[%clk 0:00:31.9]} 31... Rd8
{[%clk 0:01:03.4]} 32. Be2 {[%clk 0:00:32.3]} 32... Rd2 {[%clk 0:00:55.3]} 33.
h3 {[%clk 0:00:28]} 33... Kh8 {[%clk 0:00:51.7]} 34. Qh5+ {[%clk 0:00:19.9]}
34... Qxh5 {[%clk 0:00:52]} 35. Bxh5 {[%clk 0:00:21.6]} 35... Rgxg2 {[%clk
0:00:45.5]} 36. Rxf6 {[%clk 0:00:19.9]} 36... Rh2+ {[%clk 0:00:46.5]} 37. Kg1
{[%clk 0:00:21.2]} 37... Rdg2+ {[%clk 0:00:48.2]} 38. Kf1 {[%clk 0:00:22.6]}
38... Rxa2 {[%clk 0:00:48.4]} 39. Bf3 {[%clk 0:00:21.1]} 39... Rab2 {[%clk
0:00:45.8]} 40. Re1 {[%clk 0:00:22.2]} 40... a2 {[%clk 0:00:46.4]} 41. Rd1
{[%clk 0:00:20.9]} 41... Rb1 {[%clk 0:00:46.4]} 42. Kg1 {[%clk 0:00:22.3]} 42...
Rd2 {[%clk 0:00:44.6]} 0-1

[Event "*** MasterClass Titled Tuesday Blitz"]
[Site "Chess.com"]
[Date "2017.10.03"]
[Round "2"]
[White "josiwales"]
[Black "DiogenesSinopeus"]
[Result "1-0"]
[WhiteElo "2338"]
[BlackElo "2372"]
[TimeControl "180+2"]
[EndTime "13:23:32 PDT"]
[Termination "josiwales won by resignation"]

1. e4 {[%clk 0:03:01.2]} 1... e5 {[%clk 0:03:00.9]} 2. Nf3 {[%clk 0:03:00.8]}
2... Nc6 {[%clk 0:03:02.2]} 3. Bc4 {[%clk 0:03:02.5]} 3... Nf6 {[%clk
0:03:02.8]} 4. Ng5 {[%clk 0:03:03]} 4... d5 {[%clk 0:03:01.4]} 5. exd5 {[%clk
0:03:04.5]} 5... Na5 {[%clk 0:03:02.6]} 6. Bb5+ {[%clk 0:03:06]} 6... c6 {[%clk
0:03:04]} 7. dxc6 {[%clk 0:03:07.7]} 7... bxc6 {[%clk 0:03:05.9]} 8. Bd3 {[%clk
0:03:09.3]} 8... Nd5 {[%clk 0:03:05.1]} 9. Nf3 {[%clk 0:02:58.9]} 9... Bd6
{[%clk 0:02:56.7]} 10. O-O {[%clk 0:02:54.9]} 10... O-O {[%clk 0:02:58.2]} 11.
a3 {[%clk 0:02:56]} 11... f5 {[%clk 0:02:53]} 12. c4 {[%clk 0:02:22.9]} 12...
Nf4 {[%clk 0:02:45.5]} 13. Bc2 {[%clk 0:02:20.3]} 13... e4 {[%clk 0:02:37.1]}
14. Nd4 {[%clk 0:02:21.2]} 14... Qg5 {[%clk 0:02:07.1]} 15. g3 {[%clk
0:02:21.6]} 15... c5 {[%clk 0:01:57.6]} 16. h4 {[%clk 0:02:16.1]} 16... Qg6
{[%clk 0:01:50.6]} 17. Nb5 {[%clk 0:02:16.4]} 17... Be5 {[%clk 0:01:47.2]} 18.
N1c3 {[%clk 0:02:06.3]} 18... Nxc4 {[%clk 0:01:41]} 19. Bb3 {[%clk 0:01:49.6]}
19... Be6 {[%clk 0:01:42.1]} 20. d4 {[%clk 0:01:49.4]} 20... cxd4 {[%clk
0:01:40.9]} 21. Bxf4 {[%clk 0:01:16.7]} 21... Bxf4 {[%clk 0:01:40.7]} 22. Nxd4
{[%clk 0:01:16.4]} 22... Bf7 {[%clk 0:01:37.6]} 23. Nce2 {[%clk 0:01:11.3]}
23... Be5 {[%clk 0:01:37.3]} 24. Rc1 {[%clk 0:01:04.4]} 24... Nxb2 {[%clk
0:01:32.6]} 25. Bxf7+ {[%clk 0:01:04]} 25... Qxf7 {[%clk 0:01:34.5]} 26. Qc2
{[%clk 0:01:02.1]} 26... Nd3 {[%clk 0:01:35.3]} 27. Rb1 {[%clk 0:01:00.3]} 27...
Rac8 {[%clk 0:01:33.7]} 28. Qa4 {[%clk 0:01:00.3]} 28... f4 {[%clk 0:01:21.3]}
29. Nc6 {[%clk 0:00:52.2]} 29... Qd7 {[%clk 0:00:42.4]} 30. Qc4+ {[%clk
0:00:33.2]} 30... Kh8 {[%clk 0:00:41.9]} 31. Nxe5 {[%clk 0:00:34.7]} 31... Nxe5
{[%clk 0:00:42.2]} 32. Qxe4 {[%clk 0:00:36.1]} 32... Rce8 {[%clk 0:00:42.8]} 33.
Nxf4 {[%clk 0:00:34]} 33... Qg4 {[%clk 0:00:37.4]} 34. Rb3 {[%clk 0:00:19.7]}
34... a5 {[%clk 0:00:08.8]} 35. Re3 {[%clk 0:00:20.3]} 35... Kg8 {[%clk
0:00:08]} 36. Qd5+ {[%clk 0:00:18]} 36... Kh8 {[%clk 0:00:08.2]} 37. Rxe5 {[%clk
0:00:19.3]} 37... Qxf4 {[%clk 0:00:04.5]} 38. gxf4 {[%clk 0:00:18.4]} 1-0

[Event "*** MasterClass Titled Tuesday Blitz"]
[Site "Chess.com"]
[Date "2017.10.03"]
[Round "2"]
[White "biostatistician"]
[Black "XeresLt"]
[Result "1-0"]
[WhiteElo "2408"]
[BlackElo "2265"]
[TimeControl "180+2"]
[EndTime "13:23:36 PDT"]
[Termination "biostatistician won by resignation"]

1. d4 {[%clk 0:03:01.9]} 1... Nf6 {[%clk 0:03:00.2]} 2. Nf3 {[%clk 0:03:03.3]}
2... g6 {[%clk 0:03:01.4]} 3. c4 {[%clk 0:03:04.7]} 3... Bg7 {[%clk 0:03:03]} 4.
Nc3 {[%clk 0:03:06.6]} 4... O-O {[%clk 0:03:04.7]} 5. e4 {[%clk 0:03:07.6]} 5...
d6 {[%clk 0:03:06.6]} 6. Be2 {[%clk 0:03:09]} 6... e5 {[%clk 0:03:07.8]} 7. dxe5
{[%clk 0:03:10.9]} 7... dxe5 {[%clk 0:03:08.6]} 8. Qxd8 {[%clk 0:03:12.7]} 8...
Rxd8 {[%clk 0:03:10.3]} 9. Bg5 {[%clk 0:03:13.8]} 9... Re8 {[%clk 0:03:11.4]}
10. Nd5 {[%clk 0:03:14.4]} 10... Nxd5 {[%clk 0:03:13]} 11. cxd5 {[%clk
0:03:16.3]} 11... c6 {[%clk 0:03:14.7]} 12. Bc4 {[%clk 0:03:17.3]} 12... b5
{[%clk 0:03:14.5]} 13. Bb3 {[%clk 0:03:17.9]} 13... Bb7 {[%clk 0:03:14.4]} 14.
Rc1 {[%clk 0:03:17.1]} 14... h6 {[%clk 0:03:13.2]} 15. Be3 {[%clk 0:03:16.3]}
15... a5 {[%clk 0:03:10.3]} 16. a4 {[%clk 0:02:53.8]} 16... cxd5 {[%clk
0:02:22.4]} 17. Rc7 {[%clk 0:02:48.1]} 17... Bc6 {[%clk 0:02:20.3]} 18. axb5
{[%clk 0:02:40.2]} 18... a4 {[%clk 0:01:53.6]} 19. Ba2 {[%clk 0:02:40]} 19... a3
{[%clk 0:01:48.4]} 20. bxc6 {[%clk 0:02:38.2]} 20... axb2 {[%clk 0:01:49.2]} 21.
Bb1 {[%clk 0:02:39.1]} 21... dxe4 {[%clk 0:01:35.1]} 22. Nd2 {[%clk 0:02:31]}
22... f5 {[%clk 0:01:34.2]} 23. O-O {[%clk 0:02:29.9]} 23... Ra6 {[%clk
0:01:29.7]} 24. Rb7 {[%clk 0:02:26.6]} 24... Nxc6 {[%clk 0:01:29.1]} 25. Rxb2
{[%clk 0:02:27.1]} 25... Nd4 {[%clk 0:01:29.9]} 26. Ba2+ {[%clk 0:02:15.4]}
26... Kh7 {[%clk 0:01:28.3]} 27. Bc4 {[%clk 0:02:15.6]} 27... Ra7 {[%clk
0:01:22.2]} 28. Rfb1 {[%clk 0:02:08.2]} 28... f4 {[%clk 0:01:23.1]} 29. Bxd4
{[%clk 0:02:08.5]} 29... exd4 {[%clk 0:01:24.4]} 30. Rb7 {[%clk 0:02:00.9]}
30... Rxb7 {[%clk 0:01:20.8]} 31. Rxb7 {[%clk 0:02:02.8]} 31... e3 {[%clk
0:01:21.3]} 32. fxe3 {[%clk 0:01:59.1]} 32... fxe3 {[%clk 0:01:18]} 33. Nf3
{[%clk 0:01:58.5]} 33... Rc8 {[%clk 0:01:19]} 34. Bf1 {[%clk 0:01:13.5]} 34...
Rc1 {[%clk 0:01:18.8]} 35. Nxd4 {[%clk 0:01:14.1]} 35... Kg8 {[%clk 0:01:06.6]}
36. Ne2 {[%clk 0:01:13.5]} 36... Rc5 {[%clk 0:00:56.4]} 37. Re7 {[%clk
0:01:10.8]} 37... Be5 {[%clk 0:00:48.7]} 38. g3 {[%clk 0:01:06.1]} 38... Kf8
{[%clk 0:00:49.3]} 39. Rb7 {[%clk 0:01:04.5]} 39... g5 {[%clk 0:00:49.5]} 40.
Rb3 {[%clk 0:01:04.7]} 40... Bc7 {[%clk 0:00:44.2]} 41. Rxe3 {[%clk 0:01:05.1]}
41... Bb6 {[%clk 0:00:45.5]} 42. Rf3+ {[%clk 0:01:04.7]} 42... Rf5+ {[%clk
0:00:38.7]} 43. Kg2 {[%clk 0:01:05.4]} 43... Rxf3 {[%clk 0:00:39.3]} 44. Kxf3
{[%clk 0:01:07.3]} 44... Kg7 {[%clk 0:00:40.7]} 45. Nc3 {[%clk 0:00:55.6]} 45...
h5 {[%clk 0:00:41.1]} 46. Ke4 {[%clk 0:00:54.3]} 46... g4 {[%clk 0:00:29.9]} 47.
Kf5 {[%clk 0:00:52.3]} 47... Kh6 {[%clk 0:00:29.1]} 48. Ne2 {[%clk 0:00:47.5]}
48... Bg1 {[%clk 0:00:29.3]} 49. Nxg1 {[%clk 0:00:47.4]} 1-0

[Event "*** MasterClass Titled Tuesday Blitz"]
[Site "Chess.com"]
[Date "2017.10.03"]
[Round "2"]
[White "pKiLz5Rn9b"]
[Black "GeorgMeier"]
[Result "0-1"]
[WhiteElo "2526"]
[BlackElo "2790"]
[TimeControl "180+2"]
[EndTime "13:23:41 PDT"]
[Termination "GeorgMeier won by resignation"]

1. Nf3 {[%clk 0:03:01.9]} 1... d5 {[%clk 0:03:00.8]} 2. b3 {[%clk 0:02:57.1]}
2... Bg4 {[%clk 0:03:01.4]} 3. Bb2 {[%clk 0:02:57.5]} 3... e6 {[%clk 0:03:01.6]}
4. g3 {[%clk 0:02:53]} 4... Nf6 {[%clk 0:03:02]} 5. Bg2 {[%clk 0:02:53.9]} 5...
Be7 {[%clk 0:03:01]} 6. O-O {[%clk 0:02:54.9]} 6... O-O {[%clk 0:03:02.1]} 7. h3
{[%clk 0:02:55.2]} 7... Bh5 {[%clk 0:03:02.5]} 8. d3 {[%clk 0:02:55.7]} 8... c5
{[%clk 0:03:03.1]} 9. Nbd2 {[%clk 0:02:56.2]} 9... Nc6 {[%clk 0:03:04.3]} 10. e4
{[%clk 0:02:53.8]} 10... Qc7 {[%clk 0:02:59.6]} 11. Qe1 {[%clk 0:02:51.3]} 11...
Rfd8 {[%clk 0:02:59.7]} 12. a3 {[%clk 0:02:43.4]} 12... Rac8 {[%clk 0:02:59.9]}
13. Nh4 {[%clk 0:02:38.6]} 13... dxe4 {[%clk 0:02:49.1]} 14. dxe4 {[%clk
0:01:53.6]} 14... Nd7 {[%clk 0:02:45.6]} 15. Nhf3 {[%clk 0:01:52.3]} 15... b5
{[%clk 0:02:27]} 16. Rc1 {[%clk 0:01:47.8]} 16... a6 {[%clk 0:02:20.4]} 17. Qe3
{[%clk 0:01:39.3]} 17... h6 {[%clk 0:02:17.1]} 18. e5 {[%clk 0:01:32.2]} 18...
Nb6 {[%clk 0:02:06.6]} 19. Rfe1 {[%clk 0:01:25.3]} 19... c4 {[%clk 0:01:40.5]}
20. Ne4 {[%clk 0:00:42.4]} 20... Nd5 {[%clk 0:01:34.3]} 21. Qe2 {[%clk
0:00:43.6]} 21... c3 {[%clk 0:01:29.2]} 22. Ba1 {[%clk 0:00:31]} 22... Bxa3
{[%clk 0:01:20.4]} 23. Rcd1 {[%clk 0:00:32.1]} 23... Nxe5 {[%clk 0:01:16.5]} 24.
g4 {[%clk 0:00:19.8]} 24... Nxf3+ {[%clk 0:01:06.3]} 25. Bxf3 {[%clk 0:00:19.9]}
25... Bg6 {[%clk 0:01:07.5]} 26. Qf1 {[%clk 0:00:18.1]} 26... Bb2 {[%clk
0:01:06.7]} 27. h4 {[%clk 0:00:14.4]} 27... Qf4 {[%clk 0:01:06.5]} 28. Qg2
{[%clk 0:00:14.3]} 28... Nb4 {[%clk 0:01:01]} 29. h5 {[%clk 0:00:11.4]} 29...
Bh7 {[%clk 0:01:00.4]} 30. g5 {[%clk 0:00:12.4]} 30... hxg5 {[%clk 0:00:58.1]}
31. Nxg5 {[%clk 0:00:12.8]} 31... Bxc2 {[%clk 0:00:54.5]} 32. Rxd8+ {[%clk
0:00:11.4]} 32... Rxd8 {[%clk 0:00:54.9]} 33. h6 {[%clk 0:00:12.6]} 33... Bg6
{[%clk 0:00:54.5]} 34. Nxe6 {[%clk 0:00:12.3]} 34... fxe6 {[%clk 0:00:38.7]} 35.
Qxg6 {[%clk 0:00:13.8]} 35... Qf6 {[%clk 0:00:39.7]} 36. Qg4 {[%clk 0:00:15.1]}
36... Bxa1 {[%clk 0:00:38.5]} 37. Rxe6 {[%clk 0:00:15.2]} 37... Qf7 {[%clk
0:00:32.2]} 38. h7+ {[%clk 0:00:08.5]} 38... Kh8 {[%clk 0:00:32.4]} 39. Re1
{[%clk 0:00:05.1]} 39... Bb2 {[%clk 0:00:31.5]} 40. Qg5 {[%clk 0:00:03.8]} 40...
Rf8 {[%clk 0:00:32.1]} 0-1

[Event "*** MasterClass Titled Tuesday Blitz"]
[Site "Chess.com"]
[Date "2017.10.03"]
[Round "2"]
[White "Gergo85"]
[Black "saraswathii"]
[Result "0-1"]
[WhiteElo "2372"]
[BlackElo "2294"]
[TimeControl "180+2"]
[EndTime "13:23:48 PDT"]
[Termination "saraswathii won by checkmate"]

1. e4 {[%clk 0:03:01.9]} 1... c5 {[%clk 0:02:55]} 2. Nf3 {[%clk 0:03:02.6]} 2...
e6 {[%clk 0:02:55.4]} 3. d4 {[%clk 0:02:58.5]} 3... cxd4 {[%clk 0:02:55.8]} 4.
Nxd4 {[%clk 0:03:00.4]} 4... Nf6 {[%clk 0:02:56.7]} 5. Nc3 {[%clk 0:03:01.6]}
5... Nc6 {[%clk 0:02:57.3]} 6. Ndb5 {[%clk 0:02:57.5]} 6... Bb4 {[%clk
0:02:56.8]} 7. a3 {[%clk 0:02:57.3]} 7... Bxc3+ {[%clk 0:02:57.2]} 8. Nxc3
{[%clk 0:02:59.2]} 8... d5 {[%clk 0:02:58.1]} 9. exd5 {[%clk 0:02:57.7]} 9...
exd5 {[%clk 0:02:59]} 10. Bd3 {[%clk 0:02:59.3]} 10... d4 {[%clk 0:03:00]} 11.
Ne2 {[%clk 0:02:59.7]} 11... O-O {[%clk 0:02:58.1]} 12. O-O {[%clk 0:03:01.1]}
12... Qd5 {[%clk 0:02:57.1]} 13. Nf4 {[%clk 0:02:36.4]} 13... Qd6 {[%clk
0:02:57.3]} 14. h3 {[%clk 0:02:26]} 14... Re8 {[%clk 0:02:42.2]} 15. Nh5 {[%clk
0:02:25]} 15... Nxh5 {[%clk 0:02:41.3]} 16. Qxh5 {[%clk 0:02:25.2]} 16... h6
{[%clk 0:02:37.7]} 17. Qh4 {[%clk 0:02:10.5]} 17... Qd5 {[%clk 0:02:05]} 18.
Bxh6 {[%clk 0:01:35.5]} 18... gxh6 {[%clk 0:01:58.9]} 19. Qxh6 {[%clk
0:01:36.5]} 19... f5 {[%clk 0:01:32.7]} 20. Rae1 {[%clk 0:01:14.5]} 20... Bd7
{[%clk 0:01:15.9]} 21. b3 {[%clk 0:00:44.1]} 21... Ne5 {[%clk 0:01:06.1]} 22.
Qg5+ {[%clk 0:00:39.9]} 22... Kf8 {[%clk 0:01:03.2]} 23. Qh6+ {[%clk 0:00:29.8]}
23... Kg8 {[%clk 0:00:54.2]} 24. Qg5+ {[%clk 0:00:08.2]} 24... Kf7 {[%clk
0:00:54.6]} 25. Qh5+ {[%clk 0:00:06.4]} 25... Kg7 {[%clk 0:00:50.2]} 26. Qg5+
{[%clk 0:00:07.4]} 26... Ng6 {[%clk 0:00:50.8]} 27. Bc4 {[%clk 0:00:08.1]} 27...
Qd6 {[%clk 0:00:47.9]} 28. g3 {[%clk 0:00:07.6]} 28... Qf6 {[%clk 0:00:35.4]}
29. Qd2 {[%clk 0:00:08.4]} 29... f4 {[%clk 0:00:34.4]} 30. g4 {[%clk 0:00:08.5]}
30... Ne5 {[%clk 0:00:33.9]} 31. Bd5 {[%clk 0:00:08.4]} 31... Bc6 {[%clk
0:00:33.9]} 32. Bxc6 {[%clk 0:00:09.1]} 32... bxc6 {[%clk 0:00:34.3]} 33. f3
{[%clk 0:00:10.6]} 33... Rh8 {[%clk 0:00:33.4]} 34. Kg2 {[%clk 0:00:09.1]} 34...
c5 {[%clk 0:00:34]} 35. Rh1 {[%clk 0:00:09.1]} 35... Rae8 {[%clk 0:00:33.2]} 36.
Qf2 {[%clk 0:00:09.5]} 36... Qc6 {[%clk 0:00:30.8]} 37. Re4 {[%clk 0:00:08.1]}
37... Nxf3 {[%clk 0:00:25]} 38. Rxe8 {[%clk 0:00:04.4]} 38... Ng5+ {[%clk
0:00:24.8]} 39. Kh2 {[%clk 0:00:05.4]} 39... Rxh3+ {[%clk 0:00:23.8]} 40. Kg1
{[%clk 0:00:05.9]} 40... Rxh1# {[%clk 0:00:23.3]} 0-1

[Event "*** MasterClass Titled Tuesday Blitz"]
[Site "Chess.com"]
[Date "2017.10.03"]
[Round "2"]
[White "WanderingPuppet"]
[Black "Robin-Side"]
[Result "1-0"]
[WhiteElo "2314"]
[BlackElo "2584"]
[TimeControl "180+2"]
[EndTime "13:23:56 PDT"]
[Termination "WanderingPuppet won on time"]

1. e4 {[%clk 0:03:01.6]} 1... g6 {[%clk 0:03:01.9]} 2. d4 {[%clk 0:03:02.2]}
2... Bg7 {[%clk 0:03:03.2]} 3. Nc3 {[%clk 0:03:03.1]} 3... e6 {[%clk 0:03:04.5]}
4. Be3 {[%clk 0:03:00.2]} 4... Ne7 {[%clk 0:03:05.7]} 5. h4 {[%clk 0:02:58.3]}
5... h6 {[%clk 0:03:04.9]} 6. h5 {[%clk 0:02:58.7]} 6... g5 {[%clk 0:03:05.8]}
7. Qd2 {[%clk 0:02:44.8]} 7... d5 {[%clk 0:03:05.9]} 8. O-O-O {[%clk 0:02:40.3]}
8... dxe4 {[%clk 0:03:01.8]} 9. Nxe4 {[%clk 0:02:37.5]} 9... Qd5 {[%clk
0:03:02.5]} 10. Nc3 {[%clk 0:02:38.2]} 10... Qa5 {[%clk 0:03:03.3]} 11. Nf3
{[%clk 0:02:26.9]} 11... Nbc6 {[%clk 0:02:52]} 12. Bc4 {[%clk 0:02:10.8]} 12...
Bd7 {[%clk 0:02:48]} 13. Qe2 {[%clk 0:02:06.9]} 13... O-O-O {[%clk 0:02:26]} 14.
Bb3 {[%clk 0:02:06.7]} 14... Nf5 {[%clk 0:02:01.1]} 15. Ne4 {[%clk 0:01:38.7]}
15... Nxe3 {[%clk 0:01:55.2]} 16. fxe3 {[%clk 0:01:38.7]} 16... Nb4 {[%clk
0:01:44.9]} 17. Kb1 {[%clk 0:01:29.3]} 17... Bc6 {[%clk 0:01:36.6]} 18. Nc5
{[%clk 0:01:27]} 18... b6 {[%clk 0:01:27.2]} 19. Nd3 {[%clk 0:00:52]} 19... Nxd3
{[%clk 0:01:26.4]} 20. cxd3 {[%clk 0:00:45.7]} 20... Kb8 {[%clk 0:01:23.2]} 21.
Rc1 {[%clk 0:00:46.8]} 21... Bb7 {[%clk 0:01:20.8]} 22. Rc2 {[%clk 0:00:41.7]}
22... Rd7 {[%clk 0:01:20.8]} 23. Rhc1 {[%clk 0:00:41.2]} 23... Rhd8 {[%clk
0:01:20.2]} 24. Nd2 {[%clk 0:00:42]} 24... Qf5 {[%clk 0:01:04.6]} 25. Ba4 {[%clk
0:00:32.8]} 25... Re7 {[%clk 0:01:03.6]} 26. Rf1 {[%clk 0:00:25.2]} 26... Qd5
{[%clk 0:00:53.3]} 27. Rf2 {[%clk 0:00:17.1]} 27... Ba6 {[%clk 0:00:51.1]} 28.
Bb3 {[%clk 0:00:17.7]} 28... Qb7 {[%clk 0:00:30.1]} 29. Bc4 {[%clk 0:00:18.5]}
29... f5 {[%clk 0:00:27.3]} 30. Bxa6 {[%clk 0:00:18.9]} 30... Qxa6 {[%clk
0:00:29.2]} 31. Nc4 {[%clk 0:00:19.7]} 31... Qb5 {[%clk 0:00:20.4]} 32. Rc3
{[%clk 0:00:18.9]} 32... Kb7 {[%clk 0:00:19.2]} 33. Rb3 {[%clk 0:00:19.8]} 33...
Qd5 {[%clk 0:00:20.2]} 34. Qd2 {[%clk 0:00:18.3]} 34... Ka8 {[%clk 0:00:18.8]}
35. Qb4 {[%clk 0:00:18.4]} 35... Bf8 {[%clk 0:00:14.7]} 36. Qa4 {[%clk 0:00:17]}
36... Qb7 {[%clk 0:00:15.5]} 37. Rc2 {[%clk 0:00:15.8]} 37... Red7 {[%clk
0:00:12.1]} 38. Na5 {[%clk 0:00:16.7]} 38... Qd5 {[%clk 0:00:09.5]} 39. Nc6
{[%clk 0:00:14.6]} 39... a5 {[%clk 0:00:04.5]} 40. Rb5 {[%clk 0:00:13.3]} 1-0

[Event "*** MasterClass Titled Tuesday Blitz"]
[Site "Chess.com"]
[Date "2017.10.03"]
[Round "2"]
[White "Mistheoretical"]
[Black "Grootneus"]
[Result "1-0"]
[WhiteElo "2202"]
[BlackElo "2121"]
[TimeControl "180+2"]
[EndTime "13:24:08 PDT"]
[Termination "Mistheoretical won by checkmate"]

1. d4 {[%clk 0:03:01.9]} 1... g6 {[%clk 0:02:50.8]} 2. e4 {[%clk 0:03:02.2]}
2... Bg7 {[%clk 0:02:45.8]} 3. Nc3 {[%clk 0:03:03.8]} 3... d6 {[%clk 0:02:45.6]}
4. Be3 {[%clk 0:03:05]} 4... a6 {[%clk 0:02:45.7]} 5. Qd2 {[%clk 0:03:04.2]}
5... b5 {[%clk 0:02:45.4]} 6. a3 {[%clk 0:03:05.1]} 6... Bb7 {[%clk 0:02:46]} 7.
f3 {[%clk 0:03:05.5]} 7... Nd7 {[%clk 0:02:46.4]} 8. Nh3 {[%clk 0:03:06.3]} 8...
c5 {[%clk 0:02:37.1]} 9. d5 {[%clk 0:02:58.4]} 9... Ngf6 {[%clk 0:02:31.4]} 10.
Nf2 {[%clk 0:02:57.5]} 10... Rc8 {[%clk 0:02:26.1]} 11. Be2 {[%clk 0:02:46.3]}
11... Qa5 {[%clk 0:02:15.5]} 12. O-O {[%clk 0:02:43.6]} 12... O-O {[%clk
0:02:14.4]} 13. Rfc1 {[%clk 0:02:12.7]} 13... Ba8 {[%clk 0:02:08.5]} 14. Bh6
{[%clk 0:02:08.8]} 14... Qb6 {[%clk 0:01:53.3]} 15. Bxg7 {[%clk 0:01:56.8]}
15... Kxg7 {[%clk 0:01:55.2]} 16. Qe3 {[%clk 0:01:51.3]} 16... Rc7 {[%clk
0:01:38.8]} 17. f4 {[%clk 0:01:40.3]} 17... Rfc8 {[%clk 0:01:16.3]} 18. g4
{[%clk 0:01:40]} 18... b4 {[%clk 0:01:17.1]} 19. Ncd1 {[%clk 0:01:29.4]} 19...
a5 {[%clk 0:01:02]} 20. h4 {[%clk 0:01:21.1]} 20... c4 {[%clk 0:00:26.6]} 21.
axb4 {[%clk 0:01:01.4]} 21... axb4 {[%clk 0:00:26.9]} 22. c3 {[%clk 0:00:59.8]}
22... Qxe3 {[%clk 0:00:21]} 23. Nxe3 {[%clk 0:00:59.8]} 23... Nc5 {[%clk
0:00:22.9]} 24. Rxa8 {[%clk 0:00:10.8]} 24... Rxa8 {[%clk 0:00:22.8]} 25. e5
{[%clk 0:00:12.2]} 25... dxe5 {[%clk 0:00:22.3]} 26. fxe5 {[%clk 0:00:14.1]}
26... Nfe4 {[%clk 0:00:18.9]} 27. cxb4 {[%clk 0:00:15.4]} 27... Nxf2 {[%clk
0:00:19.5]} 28. Kxf2 {[%clk 0:00:15.7]} 28... Na4 {[%clk 0:00:19.5]} 29. b3
{[%clk 0:00:14.3]} 29... Nb6 {[%clk 0:00:10.5]} 30. bxc4 {[%clk 0:00:15]} 30...
Ra2 {[%clk 0:00:10.7]} 31. Kf3 {[%clk 0:00:14.8]} 31... Rb2 {[%clk 0:00:10.5]}
32. c5 {[%clk 0:00:13]} 32... Nc8 {[%clk 0:00:09.8]} 33. d6 {[%clk 0:00:14]}
33... exd6 {[%clk 0:00:10.8]} 34. exd6 {[%clk 0:00:14.8]} 34... Ra7 {[%clk
0:00:12.3]} 35. b5 {[%clk 0:00:13.9]} 35... Raa2 {[%clk 0:00:11.7]} 36. d7
{[%clk 0:00:10.7]} 36... Rxe2 {[%clk 0:00:12.6]} 37. dxc8=Q {[%clk 0:00:10.9]}
37... Rf2+ {[%clk 0:00:13.9]} 38. Ke4 {[%clk 0:00:11.9]} 38... Ra4+ {[%clk
0:00:15.5]} 39. Rc4 {[%clk 0:00:11.3]} 39... f5+ {[%clk 0:00:14.9]} 40. gxf5
{[%clk 0:00:11.5]} 40... gxf5+ {[%clk 0:00:16.8]} 41. Ke5 {[%clk 0:00:11.6]}
41... Ra3 {[%clk 0:00:15.6]} 42. Nxf5+ {[%clk 0:00:11.3]} 42... Kg6 {[%clk
0:00:16.4]} 43. Qg8+ {[%clk 0:00:11.6]} 43... Kh5 {[%clk 0:00:17.7]} 44. Qg5#
{[%clk 0:00:12.7]} 1-0